fUSD/lending_fUSD_20250916
["ID","MTS","AMOUNT","RATE_DAILY","PERIOD"]
[385835755,1758058268205,-400.0,0.00032875,6]
[385835756,1758058268215,-1324.78,0.00032875,6]
[385835757,1758058268226,-400.0,0.00032875,6]
[385835758,1758058268236,-400.0,0.00032875,6]
[385835759,1758058268248,-1741.21,0.00032875,6]
[385835760,1758058268259,-400.0,0.00032875,6]
[385835761,1758058268269,-400.0,0.00032875,6]
[385835762,1758058268278,-400.0,0.00032875,6]
[385835763,1758058268289,-533.501861,0.00032875,6]
[385835764,1758058268298,-400.0,0.00032875,6]
[385835765,1758058268308,-400.0,0.00032875,6]
[385835766,1758058268319,-400.0,0.00032875,6]
[385835767,1758058268330,-1543.15,0.00032875,6]
[385835768,1758058268340,-400.0,0.00032875,6]
[385835769,1758058268351,-400.0,0.00032875,6]
[385835770,1758058268363,-559.75,0.00032875,6]
[385835771,1758058268373,-400.0,0.00032875,6]
[385835772,1758058268383,-400.0,0.00032875,6]
[385835773,1758058268393,-400.0,0.00032875,6]
[385835774,1758058268403,-2637.68,0.00032875,6]
[385835775,1758058268412,-400.0,0.00032875,6]
[385835776,1758058268422,-400.0,0.00032875,6]
[385835777,1758058268431,-400.0,0.00032875,6]
[385835778,1758058268441,-635.22,0.00032875,6]
[385835779,1758058268451,-400.0,0.00032875,6]
[385835780,1758058268461,-2060.24,0.00032875,6]
[385835781,1758058268471,-400.0,0.00032875,6]
[385835782,1758058268480,-400.0,0.00032875,6]
[385835783,1758058268490,-440.36,0.00032875,6]
[385835784,1758058268500,-400.0,0.00032875,6]
[385835785,1758058268509,-1367.84,0.00032875,6]
[385835786,1758058268519,-403.80866302,0.00032875,6]
[385835787,1758058268528,-400.0,0.00032875,6]
[385835788,1758058268538,-400.0,0.00032875,6]
[385835789,1758058268547,-400.0,0.00032875,6]
[385835790,1758058268557,-502.47526664,0.00032875,6]
[385835791,1758058268567,-1696.13,0.00032875,6]
[385835792,1758058268577,-537.85,0.00032875,6]
[385835793,1758058268587,-400.0,0.00032875,6]
[385835794,1758058268596,-400.0,0.00032875,6]
[385835795,1758058268606,-428.76,0.00032875,6]
[385835796,1758058268616,-806.85,0.00032875,6]
[385835797,1758058268626,-400.0,0.00032875,6]
[385835798,1758058268636,-2321.08,0.00032875,6]
[385835799,1758058268646,-400.0,0.00032875,6]
[385835800,1758058268656,-777.31,0.00032875,6]
[385835801,1758058268666,-400.0,0.00032875,6]
[385835802,1758058268675,-614.12,0.00032875,6]
[385835803,1758058268685,-400.0,0.00032875,6]
[385835804,1758058268695,-400.0,0.00032875,6]
[385835805,1758058268704,-400.0,0.00032875,6]
[385835806,1758058268714,-400.0,0.00032875,6]
[385835807,1758058268724,-400.0,0.00032875,6]
[385835808,1758058268733,-400.0,0.00032875,6]
[385835809,1758058268743,-472.73,0.00032875,6]
[385835810,1758058268752,-400.0,0.00032875,6]
[385835811,1758058268762,-1041.29,0.00032875,6]
[385835812,1758058268771,-400.0,0.00032875,6]
[385835813,1758058268781,-400.0,0.00032875,6]
[385835814,1758058268791,-400.0,0.00032875,6]
[385835815,1758058268801,-400.0,0.00032875,6]
[385835816,1758058268810,-2927.23,0.00032875,6]
[385835817,1758058268821,-400.0,0.00032875,6]
[385835818,1758058268830,-643.91,0.00032875,6]
[385835819,1758058268840,-16454.8578741,0.00032876,2]
[385835820,1758058268850,-371.76050464,0.00032876,6]
[385835821,1758058268859,-244.71931552,0.00032876,6]
[385835822,1758058268868,-461.14,0.00032876,6]
[385835823,1758058268882,-400.0,0.00032876,6]
[385835824,1758058268892,-400.0,0.00032876,6]
[385835825,1758058268902,-400.0,0.00032876,6]
[385835826,1758058268912,-400.0,0.00032876,6]
[385835827,1758058268926,-279.13180681,0.00032876,6]
[385835828,1758058268939,-400.0,0.00032876,6]
[385835829,1758058268950,-400.0,0.00032876,6]
[385835830,1758058268960,-1150.15,0.00032876,120]
[385835831,1758058268973,-530.21,0.00032876,6]
[385835832,1758058268985,-727.34,0.00032876,6]
[385835833,1758058268997,-400.0,0.00032876,120]
[385835834,1758058269014,-400.0,0.00032876,120]
[385835835,1758058269024,-400.0,0.00032876,120]
[385835836,1758058269034,-400.0,0.00032876,120]
[385835837,1758058269043,-400.0,0.00032876,120]
[385835838,1758058269053,-400.0,0.00032876,120]
[385835839,1758058269063,-400.0,0.00032876,120]
[385835840,1758058269073,-400.0,0.00032876,120]
[385835841,1758058269082,-400.0,0.00032876,120]
[385835842,1758058269092,-400.0,0.00032876,120]
[385835843,1758058269101,-531.6,0.00032876,6]
[385835844,1758058269111,-2312.57,0.00032876,6]
[385835845,1758058269122,-586.9,0.00032876,6]
[385835846,1758058269131,-400.0,0.00032876,6]
[385835847,1758058269141,-627.93,0.00032876,6]
[385835848,1758058269152,-753.33,0.00032876,6]
[385835849,1758058269163,-518.69310345,0.00032876,2]
[385835850,1758058269173,-400.0,0.00032876,6]
[385835851,1758058269182,-400.0,0.00032876,6]
[385835852,1758058269192,-589.16,0.00032876,6]
[385835853,1758058269202,-609.41,0.00032876,6]
[385835854,1758058269212,-510.36,0.00032876,6]
[385835855,1758058269223,-684.2,0.00032876,6]
[385835856,1758058269233,-400.0,0.00032876,6]
[385835857,1758058269244,-511.86,0.00032876,6]
[385835858,1758058269253,-2593.28,0.00032876,6]
[385835859,1758058269263,-764.41,0.00032876,6]
[385835860,1758058269273,-400.0,0.00032876,6]
[385835861,1758058269283,-400.0,0.00032876,6]
[385835862,1758058269293,-400.0,0.00032876,6]
[385835863,1758058269302,-409.5,0.00032876,6]
[385835864,1758058269314,-401.87169229,0.00032876,6]
[385835865,1758058269323,-594.69,0.00032876,6]
[385835866,1758058269333,-400.0,0.00032876,6]
[385835867,1758058269343,-918.03,0.00032876,6]
[385835868,1758058269353,-563.64,0.00032876,6]
[385835869,1758058269364,-955.33,0.00032876,6]
[385835870,1758058269375,-3040.54,0.00032876,6]
[385835871,1758058269386,-594.06,0.00032876,6]
[385835872,1758058269400,-659.68,0.00032876,6]
[385835873,1758058269410,-400.0,0.00032876,6]
[385835874,1758058269421,-585.22,0.00032876,6]
[385835875,1758058269649,-483.06,0.00032876,6]
[385835876,1758058269658,-400.0,0.00032876,6]
[385835877,1758058269669,-431.69,0.00032876,6]
[385835878,1758058269679,-600.0,0.00032882,7]
[385835879,1758058269689,-3581.74,0.000329,14]
[385835880,1758058269700,-1000.0,0.00032927,7]
[385835881,1758058269709,-400.0,0.00032938,6]
[385835882,1758058269719,-334.896848,0.00032938,6]
[385835883,1758058269730,-400.0,0.00032938,6]
[385835884,1758058269739,-400.0,0.00032938,6]
[385835885,1758058269749,-400.0,0.00032938,6]
[385835886,1758058269758,-439.88,0.00032938,6]
[385835887,1758058269768,-407.7518092,0.00032938,6]
[385835888,1758058269777,-400.0,0.00032938,6]
[385835889,1758058269786,-400.0,0.00032938,6]
[385835890,1758058269796,-595.63,0.00032938,6]
[385835891,1758058269805,-400.0,0.00032938,6]
[385835892,1758058269814,-461.84,0.00032938,6]
[385835893,1758058269823,-400.0,0.00032938,6]
[385835894,1758058269833,-924.18,0.00032938,6]
[385835895,1758058269843,-400.0,0.00032938,6]
[385835896,1758058269852,-400.0,0.00032938,6]
[385835897,1758058269861,-400.0,0.00032938,6]
[385835898,1758058269870,-400.0,0.00032938,6]
[385835899,1758058269885,-779.04,0.00032938,6]
[385835900,1758058269894,-11748.77,0.00032938,6]
[385835901,1758058269904,-400.0,0.00032938,6]
[385835902,1758058269913,-846.77,0.00032938,6]
[385835903,1758058269923,-816.88,0.00032938,6]
[385835904,1758058269932,-417.79,0.00032938,6]
[385835905,1758058269941,-617.06,0.00032938,6]
[385835906,1758058269951,-956.08,0.00032938,6]
[385835907,1758058269961,-1000.0,0.00032994,7]
[385835908,1758058269971,-262.69,0.00032994,30]
[385835909,1758058269982,-4630.84487913,0.00033,2]
[385835910,1758058269992,-700.0,0.00033095,7]
[385835911,1758058270004,-500.0,0.00033104,7]
[385835912,1758058270014,-400.0,0.00033111,6]
[385835913,1758058270023,-400.0,0.00033111,6]
[385835914,1758058270033,-400.0,0.00033111,6]
[385835915,1758058270042,-400.0,0.00033111,6]
[385835916,1758058270051,-400.0,0.00033111,6]
[385835917,1758058270060,-400.0,0.00033111,6]
[385835918,1758058270070,-1275.83,0.00033111,6]
[385835919,1758058270079,-408.95,0.00033111,6]
[385835920,1758058270089,-400.0,0.00033111,6]
[385835921,1758058270105,-467.76,0.00033111,6]
[385835922,1758058270116,-400.0,0.00033111,6]
[385835923,1758058270126,-833.72,0.00033111,6]
[385835924,1758058270135,-400.0,0.00033111,6]
[385835925,1758058270145,-400.0,0.00033111,6]
[385835926,1758058270154,-529.33,0.00033111,6]
[385835927,1758058270164,-935.51,0.00033111,6]
[385835928,1758058270173,-539.44,0.00033111,6]
[385835929,1758058270182,-500.0,0.00033112,7]
[385835930,1758058270192,-600.0,0.00033116,7]
[385835931,1758058270202,-1000.0,0.00033128,7]
[385835932,1758058270211,-500.0,0.00033129,6]
[385835933,1758058270221,-500.0,0.00033129,6]
[385835934,1758058270230,-500.0,0.00033129,6]
[385835935,1758058270240,-12823.36393753,0.0003314,2]
[385835936,1758058270249,-885.22,0.00033148,6]
[385835937,1758058270259,-882.33,0.00033148,6]
[385835938,1758058270269,-400.0,0.00033148,6]
[385835939,1758058270278,-583.88,0.00033148,6]
[385835940,1758058270288,-400.0,0.00033149,6]
[385835941,1758058270297,-400.0,0.00033149,6]
[385835942,1758058270306,-400.0,0.00033149,6]
[385835943,1758058270316,-400.0,0.00033149,6]
[385835944,1758058270326,-400.0,0.00033149,6]
[385835945,1758058270335,-400.0,0.00033149,6]
[385835946,1758058270345,-1030.84,0.00033149,6]
[385835947,1758058270355,-893.45,0.00033149,6]
[385835948,1758058270365,-400.0,0.00033149,6]
[385835949,1758058270375,-1390.25,0.00033149,6]
[385835950,1758058270386,-846.78,0.00033149,6]
[385835951,1758058270395,-400.0,0.00033149,6]
[385835952,1758058270406,-460.58,0.00033149,6]
[385835953,1758058270416,-463.17,0.00033149,6]
[385835954,1758058270426,-400.0,0.00033149,120]
[385835955,1758058270435,-400.0,0.00033149,6]
[385835956,1758058270444,-400.0,0.00033149,6]
[385835957,1758058270454,-400.0,0.00033149,6]
[385835958,1758058270463,-400.0,0.00033149,6]
[385835959,1758058270472,-334.39750298,0.00033149,6]
[385835960,1758058270482,-400.0,0.00033149,6]
[385835961,1758058270491,-400.0,0.00033149,6]
[385835962,1758058270501,-300.0,0.00033149,6]
[385835963,1758058270511,-544.6,0.00033149,6]
[385835964,1758058270522,-400.0,0.00033149,6]
[385835965,1758058270532,-579.99,0.00033149,6]
[385835966,1758058270541,-400.0,0.00033149,6]
[385835967,1758058270550,-1324.78,0.00033149,6]
[385835968,1758058270560,-400.0,0.00033149,6]
[385835969,1758058270569,-400.0,0.00033149,6]
[385835970,1758058270579,-1741.21,0.00033149,6]
[385835971,1758058270588,-400.0,0.00033149,6]
[385835972,1758058270598,-400.0,0.00033149,6]
[385835973,1758058270607,-400.0,0.00033149,6]
[385835974,1758058270616,-400.0,0.00033149,6]
[385835975,1758058270626,-400.0,0.00033149,6]
[385835976,1758058270635,-400.0,0.00033149,6]
[385835977,1758058270645,-1543.15,0.00033149,6]
[385835978,1758058270654,-400.0,0.00033149,6]
[385835979,1758058270665,-325.46858633,0.00033149,6]
[385835980,1758058270674,-559.75,0.00033149,6]
[385835981,1758058270683,-400.0,0.00033149,6]
[385835982,1758058270693,-400.0,0.00033149,6]
[385835983,1758058270702,-400.0,0.00033149,6]
[385835984,1758058270711,-2637.68,0.00033149,6]
[385835985,1758058270721,-400.0,0.00033149,6]
[385835986,1758058270732,-400.0,0.00033149,6]
[385835987,1758058270742,-400.0,0.00033149,6]
[385835988,1758058270751,-635.22,0.00033149,6]
[385835989,1758058270760,-400.0,0.00033149,6]
[385835990,1758058270769,-2060.24,0.00033149,6]
[385835991,1758058270779,-400.0,0.00033149,6]
[385835992,1758058270790,-400.0,0.00033149,6]
[385835993,1758058270800,-440.36,0.00033149,6]
[385835994,1758058270809,-531.92078138,0.00033149,6]
[385835995,1758058270819,-1367.84,0.00033149,6]
[385835996,1758058270828,-400.0,0.00033149,6]
[385835997,1758058270838,-400.0,0.00033149,6]
[385835998,1758058270847,-1696.13,0.00033149,6]
[385835999,1758058270856,-537.85,0.00033149,6]
[385836000,1758058270866,-400.0,0.00033149,6]
[385836001,1758058270880,-400.0,0.00033149,6]
[385836002,1758058270889,-428.76,0.00033149,6]
[385836003,1758058270899,-806.85,0.00033149,6]
[385836004,1758058270910,-400.0,0.00033149,6]
[385836005,1758058270922,-2321.08,0.00033149,6]
[385836006,1758058270933,-400.0,0.00033149,6]
[385836007,1758058270942,-777.31,0.00033149,6]
[385836008,1758058270953,-400.0,0.00033149,6]
[385836009,1758058270962,-614.12,0.00033149,6]
[385836010,1758058270971,-400.0,0.00033149,6]
[385836011,1758058270981,-400.0,0.00033149,6]
[385836012,1758058270991,-400.0,0.00033149,6]
[385836013,1758058271000,-400.0,0.00033149,6]
[385836014,1758058271011,-400.0,0.00033149,6]
[385836015,1758058271020,-400.0,0.00033149,6]
[385836016,1758058271029,-472.73,0.00033149,6]
[385836017,1758058271038,-400.0,0.00033149,6]
[385836018,1758058271048,-1041.29,0.00033149,6]
[385836019,1758058271057,-400.0,0.00033149,6]
[385836020,1758058271067,-400.0,0.00033149,6]
[385836021,1758058271077,-400.0,0.00033149,6]
[385836022,1758058271086,-2927.23,0.00033149,6]
[385836023,1758058271095,-643.91,0.00033149,6]
[385836024,1758058271105,-400.0,0.00033149,6]
[385836025,1758058271114,-461.14,0.0003315,6]
[385836026,1758058271123,-400.0,0.0003315,6]
[385836027,1758058271133,-157.37473826,0.0003315,6]
[385836028,1758058271142,-400.0,0.0003315,6]
[385836029,1758058271152,-415.03320139,0.0003315,6]
[385836030,1758058271162,-403.41044124,0.0003315,6]
[385836031,1758058271172,-400.0,0.0003315,6]
[385836032,1758058271181,-530.21,0.0003315,6]
[385836033,1758058271191,-727.34,0.0003315,6]
[385836034,1758058271201,-700.0,0.0003315,7]
[385836035,1758058271210,-531.6,0.0003315,6]
[385836036,1758058271219,-2312.57,0.0003315,6]
[385836037,1758058271229,-586.9,0.0003315,6]
[385836038,1758058271238,-400.0,0.0003315,6]
[385836039,1758058271247,-627.93,0.0003315,6]
[385836040,1758058271258,-753.33,0.0003315,6]
[385836041,1758058271267,-400.0,0.0003315,6]
[385836042,1758058271276,-400.0,0.0003315,6]
[385836043,1758058271285,-589.16,0.0003315,6]
[385836044,1758058271295,-609.41,0.0003315,6]
[385836045,1758058271304,-510.36,0.0003315,6]
[385836046,1758058271313,-684.2,0.0003315,6]
[385836047,1758058271323,-400.0,0.0003315,6]
[385836048,1758058271332,-511.86,0.0003315,6]
[385836049,1758058271342,-2593.28,0.0003315,6]
[385836050,1758058271351,-764.41,0.0003315,6]
[385836051,1758058271360,-409.5,0.0003315,6]
[385836052,1758058271369,-594.69,0.0003315,6]
[385836053,1758058271379,-400.0,0.0003315,6]
[385836054,1758058271390,-563.64,0.0003315,6]
[385836055,1758058271400,-918.03,0.0003315,6]
[385836056,1758058271411,-955.33,0.0003315,6]
[385836057,1758058271421,-3040.54,0.0003315,6]
[385836058,1758058271432,-659.68,0.0003315,6]
[385836059,1758058271441,-594.06,0.0003315,6]
[385836060,1758058271450,-400.0,0.0003315,6]
[385836061,1758058271460,-585.22,0.0003315,6]
[385836062,1758058271470,-483.06,0.0003315,6]
[385836063,1758058271480,-543.25059157,0.0003315,6]
[385836064,1758058271490,-431.69,0.0003315,6]
[385836065,1758058271499,-500.0,0.0003318,7]
[385836066,1758058271509,-184.69,0.00033189,2]
[385836067,1758058271519,-400.0,0.00033212,6]
[385836068,1758058271531,-400.0,0.00033212,6]
[385836069,1758058271541,-400.0,0.00033212,6]
[385836070,1758058271550,-400.0,0.00033212,6]
[385836071,1758058271559,-439.88,0.00033212,6]
[385836072,1758058271568,-400.0,0.00033212,6]
[385836073,1758058271580,-400.0,0.00033212,6]
[385836074,1758058271591,-595.63,0.00033212,6]
[385836075,1758058271602,-400.0,0.00033212,6]
[385836076,1758058271613,-461.84,0.00033212,6]
[385836077,1758058271622,-400.0,0.00033212,6]
[385836078,1758058271632,-924.18,0.00033212,6]
[385836079,1758058271641,-400.0,0.00033212,6]
[385836080,1758058271650,-400.0,0.00033212,6]
[385836081,1758058271659,-400.0,0.00033212,6]
[385836082,1758058271669,-400.0,0.00033212,6]
[385836083,1758058271678,-779.04,0.00033212,6]
[385836084,1758058271688,-11748.77,0.00033212,6]
[385836085,1758058271697,-400.0,0.00033212,6]
[385836086,1758058271707,-846.77,0.00033212,6]
[385836087,1758058271716,-816.88,0.00033212,6]
[385836088,1758058271725,-417.79,0.00033212,6]
[385836089,1758058271735,-617.06,0.00033212,6]
[385836090,1758058271744,-956.08,0.00033212,6]
[385836091,1758058271754,-150.0,0.00033289,7]
[385836092,1758058271763,-151.0,0.000333,120]
[385836093,1758058271773,-400.0,0.00033385,6]
[385836094,1758058271782,-400.0,0.00033385,6]
[385836095,1758058271791,-400.0,0.00033385,6]
[385836096,1758058271801,-400.0,0.00033385,6]
[385836097,1758058271810,-500.0,0.00033385,7]
[385836098,1758058271819,-161.08662107,0.00033385,6]
[385836099,1758058271829,-444.66768233,0.00033385,6]
[385836100,1758058271838,-1275.83,0.00033385,6]
[385836101,1758058271847,-408.95,0.00033385,6]
[385836102,1758058271856,-400.0,0.00033385,6]
[385836103,1758058271865,-467.76,0.00033385,6]
[385836104,1758058271876,-400.0,0.00033385,6]
[385836105,1758058271886,-833.72,0.00033385,6]
[385836106,1758058271895,-400.0,0.00033385,6]
[385836107,1758058271904,-400.0,0.00033385,6]
[385836108,1758058271913,-529.33,0.00033385,6]
[385836109,1758058271922,-935.51,0.00033385,6]
[385836110,1758058271932,-539.44,0.00033385,6]
[385836111,1758058271942,-168.54,0.00033421,2]
[385836112,1758058272004,-885.22,0.00033422,6]
[385836113,1758058272013,-882.33,0.00033422,6]
[385836114,1758058272023,-400.0,0.00033422,6]
[385836115,1758058272032,-583.88,0.00033422,6]
[385836116,1758058272041,-400.0,0.00033423,6]
[385836117,1758058272051,-400.0,0.00033423,6]
[385836118,1758058272062,-229.95326718,0.00033423,6]
[385836119,1758058272071,-400.0,0.00033423,6]
[385836120,1758058272080,-231.30948843,0.00033423,6]
[385836121,1758058272089,-400.0,0.00033423,6]
[385836123,1758058272099,-400.0,0.00033423,6]
[385836124,1758058272109,-1030.84,0.00033423,6]
[385836125,1758058272119,-400.0,0.00033423,6]
[385836126,1758058272128,-893.45,0.00033423,6]
[385836127,1758058272137,-163.17,0.00033423,6]
[385836128,1758058272146,-1390.25,0.00033423,6]
[385836129,1758058272156,-846.78,0.00033423,6]
[385836130,1758058272166,-230.20977928,0.00033423,6]
[385836131,1758058272175,-400.0,0.00033423,6]
[385836132,1758058272185,-463.17,0.00033423,6]
[385836133,1758058272194,-400.0,0.00033423,120]
[385836134,1758058272204,-400.0,0.00033423,6]
[385836135,1758058272213,-400.0,0.00033423,6]
[385836136,1758058272222,-400.0,0.00033423,6]
[385836137,1758058272231,-400.0,0.00033423,6]
[385836138,1758058272240,-400.0,0.00033423,6]
[385836139,1758058272250,-405.15,0.00033423,6]
[385836140,1758058272261,-400.0,0.00033423,6]
[385836141,1758058272270,-400.0,0.00033423,6]
[385836142,1758058272280,-401.37,0.00033423,6]
[385836143,1758058272291,-544.6,0.00033423,6]
[385836144,1758058272300,-400.0,0.00033423,6]
[385836145,1758058272310,-579.99,0.00033423,6]
[385836146,1758058272321,-400.0,0.00033423,6]
[385836147,1758058272332,-448.28,0.00033423,6]
[385836148,1758058272341,-1324.78,0.00033423,6]
[385836149,1758058272350,-400.0,0.00033423,6]
[385836150,1758058272359,-400.0,0.00033423,6]
[385836151,1758058272368,-400.0,0.00033423,6]
[385836152,1758058272377,-1741.21,0.00033423,6]
[385836153,1758058272386,-476.59,0.00033423,6]
[385836154,1758058272397,-449.8226004,0.00033423,6]
[385836155,1758058272407,-400.0,0.00033423,6]
[385836156,1758058272418,-400.0,0.00033423,6]
[385836157,1758058272428,-400.0,0.00033423,6]
[385836158,1758058272437,-709.37,0.00033423,6]
[385836159,1758058272446,-1543.15,0.00033423,6]
[385836160,1758058272455,-400.0,0.00033423,6]
[385836161,1758058272465,-559.75,0.00033423,6]
[385836162,1758058272474,-400.0,0.00033423,6]
[385836163,1758058272483,-400.0,0.00033423,6]
[385836164,1758058272491,-400.0,0.00033423,6]
[385836165,1758058272500,-2637.68,0.00033423,6]
[385836166,1758058272509,-406.22552345,0.00033423,6]
[385836167,1758058272518,-400.0,0.00033423,6]
[385836168,1758058272527,-400.0,0.00033423,6]
[385836169,1758058272536,-635.22,0.00033423,6]
[385836170,1758058272545,-241.67543091,0.00033423,6]
[385836171,1758058272554,-2060.24,0.00033423,6]
[385836172,1758058272563,-400.0,0.00033423,6]
[385836173,1758058272573,-400.0,0.00033423,6]
[385836174,1758058272581,-440.36,0.00033423,6]
[385836175,1758058272590,-1367.84,0.00033423,6]
[385836176,1758058272599,-400.0,0.00033423,6]
[385836177,1758058272608,-400.0,0.00033423,6]
[385836178,1758058272617,-1696.13,0.00033423,6]
[385836179,1758058272626,-537.85,0.00033423,6]
[385836180,1758058272635,-400.0,0.00033423,6]
[385836181,1758058272644,-428.76,0.00033423,6]
[385836182,1758058272653,-806.85,0.00033423,6]
[385836183,1758058272662,-400.0,0.00033423,6]
[385836184,1758058272672,-549.91,0.00033423,6]
[385836185,1758058272681,-2321.08,0.00033423,6]
[385836186,1758058272690,-400.0,0.00033423,6]
[385836187,1758058272700,-777.31,0.00033423,6]
[385836188,1758058272709,-400.0,0.00033423,6]
[385836189,1758058272718,-400.0,0.00033423,6]
[385836190,1758058272727,-614.12,0.00033423,6]
[385836191,1758058272736,-400.0,0.00033423,6]
[385836192,1758058272746,-400.0,0.00033423,6]
[385836193,1758058272754,-400.0,0.00033423,6]
[385836194,1758058272764,-400.0,0.00033423,6]
[385836195,1758058272773,-400.0,0.00033423,6]
[385836196,1758058272782,-400.0,0.00033423,6]
[385836197,1758058272791,-400.0,0.00033423,6]
[385836198,1758058272800,-472.73,0.00033423,6]
[385836199,1758058272809,-400.0,0.00033423,6]
[385836200,1758058272818,-1041.29,0.00033423,6]
[385836201,1758058272827,-400.0,0.00033423,6]
[385836202,1758058272836,-400.0,0.00033423,6]
[385836203,1758058272845,-400.0,0.00033423,6]
[385836204,1758058272855,-730.67,0.00033423,6]
[385836205,1758058272864,-2927.23,0.00033423,6]
[385836206,1758058272874,-643.91,0.00033423,6]
[385836207,1758058272886,-400.0,0.00033423,6]
[385836208,1758058272895,-461.14,0.00033424,6]
[385836209,1758058272904,-400.0,0.00033424,6]
[385836210,1758058272913,-400.0,0.00033424,6]
[385836211,1758058272923,-400.0,0.00033424,6]
[385836212,1758058272932,-530.21,0.00033424,6]
[385836213,1758058272942,-727.34,0.00033424,6]
[385836214,1758058272952,-531.6,0.00033424,6]
[385836215,1758058272961,-2312.57,0.00033424,6]
[385836216,1758058272971,-586.9,0.00033424,6]
[385836217,1758058272980,-400.0,0.00033424,6]
[385836218,1758058272989,-627.93,0.00033424,6]
[385836219,1758058272999,-753.33,0.00033424,6]
[385836220,1758058273008,-400.0,0.00033424,6]
[385836221,1758058273017,-400.0,0.00033424,6]
[385836222,1758058273026,-589.16,0.00033424,6]
[385836223,1758058273035,-609.41,0.00033424,6]
[385836224,1758058273045,-510.36,0.00033424,6]
[385836225,1758058273055,-684.2,0.00033424,6]
[385836226,1758058273064,-400.0,0.00033424,6]
[385836227,1758058273074,-511.86,0.00033424,6]
[385836228,1758058273083,-2593.28,0.00033424,6]
[385836229,1758058273092,-764.41,0.00033424,6]
[385836230,1758058273102,-409.5,0.00033424,6]
[385836231,1758058273111,-594.69,0.00033424,6]
[385836232,1758058273121,-400.0,0.00033424,6]
[385836233,1758058273131,-563.64,0.00033424,6]
[385836234,1758058273140,-918.03,0.00033424,6]
[385836235,1758058273149,-955.33,0.00033424,6]
[385836236,1758058273158,-3040.54,0.00033424,6]
[385836237,1758058273167,-659.68,0.00033424,6]
[385836238,1758058273178,-594.06,0.00033424,6]
[385836239,1758058273187,-400.0,0.00033424,6]
[385836240,1758058273197,-585.22,0.00033424,6]
[385836241,1758058273206,-483.06,0.00033424,6]
[385836242,1758058273216,-1000.0,0.0003345,7]
[385836243,1758058273225,-400.0,0.00033486,6]
[385836244,1758058273235,-400.0,0.00033486,6]
[385836245,1758058273244,-400.0,0.00033486,6]
[385836246,1758058273254,-400.0,0.00033486,6]
[385836247,1758058273263,-439.88,0.00033486,6]
[385836248,1758058273273,-400.0,0.00033486,6]
[385836249,1758058273282,-400.0,0.00033486,6]
[385836250,1758058273292,-595.63,0.00033486,6]
[385836251,1758058273301,-400.0,0.00033486,6]
[385836252,1758058273310,-461.84,0.00033486,6]
[385836253,1758058273319,-316.70490364,0.00033486,6]
[385836254,1758058273329,-924.18,0.00033486,6]
[385836255,1758058273338,-400.0,0.00033486,6]